Workbook

Sheet 31.03.2018
A2: Прилог 5
A3: Попуњава банка Матични број: 07654812 Шифра делатности: 6419 ПИБ: 101458655
A5: Назив: Директна Банка ад Крагујевац
A6: Седиште: Крагујевац
B9: ИЗВЕШТАЈ О ТОКОВИМА ГОТОВИНЕ
B10: у периоду од 01.01.2018. до 31.03.2018.год.
A13: ПОЗИЦИЈА | C13: Ознака за АОП | G13: Износ
G14: Текућа година | H14: Претходна година
A15: 1 | C15: 2 | G15: 3 | H15: 4
A16: A. | B16: ТОКОВИ ГОТОВИНЕ ИЗ ПОСЛОВНИХ АКТИВНОСТИ
A17: I. | B17: Приливи готовине из пословних активности (од 1 до 4) | C17: 3 | D17: 0 | E17: 0 | F17: 1 | G17: =+G18+G19+G20+G21 -> 462735.1269 | H17: =+H18+H19+H20+H21 -> 184256
A18: 1 | B18: Приливи од камата | C18: 3 | D18: 0 | E18: 0 | F18: 2 | G18: 311131.5055 | H18: 110548
A19: 2 | B19: Приливи од накнада | C19: 3 | D19: 0 | E19: 0 | F19: 3 | G19: 136325.4572 | H19: 65099
A20: 3 | B20: Приливи по основу осталих пословних активности | C20: 3 | D20: 0 | E20: 0 | F20: 4 | G20: 15278.1642 | H20: 8609
A21: 4 | B21: Приливи од дивиденди и учешћа у добитку | C21: 3 | D21: 0 | E21: 0 | F21: 5
A22: II. | B22: Одливи готовине из пословних активности (од 5 до 9) | C22: 3 | D22: 0 | E22: 0 | F22: 6 | G22: =+G23+G24+G25+G26+G27 -> 418086.7048 | H22: =+H23+H24+H25+H26+H27 -> 213036
A23: 5 | B23: Одливи по основу камата | C23: 3 | D23: 0 | E23: 0 | F23: 7 | G23: 47050.43889 | H23: 9450
A24: 6 | B24: Одливи по основу накнада | C24: 3 | D24: 0 | E24: 0 | F24: 8 | G24: 52123.60637 | H24: 15055
A25: 7 | B25: Одливи по основу бруто зарада, накнада зарада и других личних расхода | C25: 3 | D25: 0 | E25: 0 | F25: 9 | G25: 146741.6298 | H25: 87550
A26: 8 | B26: Одливи по основу пореза, доприноса и других дажбина на терет расхода | C26: 3 | D26: 0 | E26: 1 | F26: 0 | G26: 42177.27989 | H26: 10349
A27: 9 | B27: Одливи по основу других трошкова пословања | C27: 3 | D27: 0 | E27: 1 | F27: 1 | G27: 129993.7499 | H27: 90632
A28: III. | B28: Нето прилив готовине из пословних активности пре повећања или смањења финансијских средстава и финансијских обавеза (I - II) | C28: 3 | D28: 0 | E28: 1 | F28: 2 | G28: =+G17-G22 -> 44648.42215
A29: IV. | B29: Нето одлив готовине из пословних активности пре повећања или смањења финансијских средстава и финансијских обавеза (II - I) | C29: 3 | D29: 0 | E29: 1 | F29: 3 | H29: =+H22-H17 -> 28780
A30: V. | B30: Смањење финансијских средстава и повећање финансијских обавеза (од 10 до 15) | C30: 3 | D30: 0 | E30: 1 | F30: 4 | G30: =+G31+G32+G33+G34+G35+G36 -> 562728.6267 | H30: =+H31+H32+H33+H34+H35+H36 -> 532551
A31: 10 | B31: Смањење кредита и других потраживања од банака и других финансијских организација, централне банке и комитената | C31: 3 | D31: 0 | E31: 1 | F31: 5 | H31: 155482
A32: 11 | B32: Смањење потраживања по основу хартија од вредности, деривата и осталих финансијских средстава која нису намењенa инвестирању | C32: 3 | D32: 0 | E32: 1 | F32: 6 | H32: 72822
A33: 12 | B33: Смањење потраживања по основу деривата намењених заштити од ризика и промене фер вредности ставки које су предмет заштите од ризика | C33: 3 | D33: 0 | E33: 1 | F33: 7
A34: 13 | B34: Повећање депозита и осталих финансијских обавеза према банкама и другим финансијским организацијама, централној банци и комитентима | C34: 3 | D34: 0 | E34: 1 | F34: 8 | G34: 562728.6267 | H34: 304247
A35: 14 | B35: Повећање других финансијских обавеза | C35: 3 | D35: 0 | E35: 1 | F35: 9
A36: 15 | B36: Повећање обавеза по основу деривата намењених заштити од ризика и промене фер вредности ставки које су предмет заштите од ризика | C36: 3 | D36: 0 | E36: 2 | F36: 0
A37: VI. | B37: Повећање финансијских средстава и смањење финансијских обавеза (од 16 до 21) | C37: 3 | D37: 0 | E37: 2 | F37: 1 | G37: =+G38+G39+G40+G41+G42+G43 -> 771351.7246 | H37: =+H38+H39+H40+H41+H42+H43 -> 0
A38: 16 | B38: Повећање кредита и других потраживања од банака и других финансијских организација, централне банке и комитената | C38: 3 | D38: 0 | E38: 2 | F38: 2 | G38: 243551.2215
A39: 17 | B39: Повећање потраживања по основу хартија од вредности, деривата и осталих финансијских средстава која нису намењена инвестирању | C39: 3 | D39: 0 | E39: 2 | F39: 3 | G39: 527800.5032
A40: 18 | B40: Повећање потраживања по основу деривата намењених заштити од ризика и промене фер вредности ставки које су предмет заштите од ризика | C40: 3 | D40: 0 | E40: 2 | F40: 4
A41: 19 | B41: Смањење депозита и осталих финансијских обавеза према банкама и другим финансијским организацијама, централним банкама и комитентима | C41: 3 | D41: 0 | E41: 2 | F41: 5
A42: 20 | B42: Смањење других финансијских обавеза | C42: 3 | D42: 0 | E42: 2 | F42: 6
A43: 21 | B43: Смањење обавеза по основу деривата намењених заштити од ризика и промене фер вредности ставки које су предмет заштите од ризика | C43: 3 | D43: 0 | E43: 2 | F43: 7
A44: VII. | B44: Нето прилив готовине из пословних активности пре пореза на добит (III - IV + V - VI) | C44: 3 | D44: 0 | E44: 2 | F44: 8 | H44: =+H28-H29+H30-H37 -> 503771
A45: VIII. | B45: Нето одлив готовине из пословних активности пре пореза на добит (IV - III + VI - V) | C45: 3 | D45: 0 | E45: 2 | F45: 9 | G45: =+G29-G28+G37-G30 -> 163974.6758
A46: 22 | B46: Плаћени порез на добит | C46: 3 | D46: 0 | E46: 3 | F46: 0
A47: 23 | B47: Исплаћене дивиденде | C47: 3 | D47: 0 | E47: 3 | F47: 1
A48: IX. | B48: Нето прилив готовине из пословних активности (VII - VIII - 22 - 23) | C48: 3 | D48: 0 | E48: 3 | F48: 2 | H48: =+H44-H45-H46-H47 -> 503771
A49: X. | B49: Нето одлив готовине из пословних активности (VIII - VII + 22 + 23) | C49: 3 | D49: 0 | E49: 3 | F49: 3 | G49: =+G45-G44+G46-G47 -> 163974.6758
A50: Б. | B50: ТОКОВИ ГОТОВИНЕ ИЗ АКТИВНОСТИ ИНВЕСТИРАЊА
A51: I. | B51: Приливи готовине из активности инвестирања (од 1 до 5) | C51: 3 | D51: 0 | E51: 3 | F51: 4 | G51: =+G52+G53+G54+G55+G56 -> 0 | H51: =+H52+H53+H54+H55+H56 -> 15
A52: 1 | B52: Приливи од улагања у инвестиционе хартије од вредности | C52: 3 | D52: 0 | E52: 3 | F52: 5
A53: 2 | B53: Приливи од продаје инвестиција у зависна и придружена друштва и заједничке подухвате | C53: 3 | D53: 0 | E53: 3 | F53: 6
A54: 3 | B54: Приливи од продаје нематеријалне иновине, некретнина, постројења и опреме | C54: 3 | D54: 0 | E54: 3 | F54: 7 | H54: 15
A55: 4 | B55: Приливи од продаје инвестиционих некретнина | C55: 3 | D55: 0 | E55: 3 | F55: 8
A56: 5 | B56: Остали приливи из активности инвестирања | C56: 3 | D56: 0 | E56: 3 | F56: 9
A57: II. | B57: Одливи готовине из активности инвестирања (од 6 до 10) | C57: 3 | D57: 0 | E57: 4 | F57: 0 | G57: =+G58+G59+G60+G61+G62 -> 131941.0714 | H57: =+H58+H59+H60+H61+H62 -> 1057007
A58: 6 | B58: Одливи по основу улагања у инвестиционе хартије од вредности | C58: 3 | D58: 0 | E58: 4 | F58: 1 | H58: 1053656
A59: 7 | B59: Одливи за куповину инвестиција у зависна и придружена друштва и заједничке подухвате | C59: 3 | D59: 0 | E59: 4 | F59: 2
A60: 8 | B60: Одливи за куповину нематеријалне имовине, некретнина, постројења и опреме | C60: 3 | D60: 0 | E60: 4 | F60: 3 | G60: 131941.0714 | H60: 3351
A61: 9 | B61: Одливи по основу набавке инвестиционих некретнина | C61: 3 | D61: 0 | E61: 4 | F61: 4
A62: 10 | B62: Остали одливи из активности инвестирања | C62: 3 | D62: 0 | E62: 4 | F62: 5
A63: III. | B63: Нето прилив готовине из активности инвестирања (I - II) | C63: 3 | D63: 0 | E63: 4 | F63: 6
A64: IV. | B64: Нето одлив готовине из активности инвестирања (II - I) | C64: 3 | D64: 0 | E64: 4 | F64: 7 | G64: =+G57-G51 -> 131941.0714 | H64: =+H57-H51 -> 1056992
A65: B. | B65: ТОКОВИ ГОТОВИНЕ ИЗ АКТИВНОСТИ ФИНАНСИРАЊА
A66: I. | B66: Приливи готовине из активности финансирања (од 1 до 6) | C66: 3 | D66: 0 | E66: 4 | F66: 8 | G66: =+SUM(G67:G72) -> 0 | H66: =+SUM(H67:H72) -> 511992
A67: 1 | B67: Приливи по основу увећања капитала | C67: 3 | D67: 0 | E67: 4 | F67: 9 | H67: 511992
A68: 2 | B68: Приливи по основу субординираних обавеза | C68: 3 | D68: 0 | E68: 5 | F68: 0
A69: 3 | B69: Приливи по основу узетих кредита | C69: 3 | D69: 0 | E69: 5 | F69: 1
A70: 4 | B70: Приливи по основу издатих хартија од вредности | C70: 3 | D70: 0 | E70: 5 | F70: 2
A71: 5 | B71: Приливи по основу продаје сопствених акција | C71: 3 | D71: 0 | E71: 5 | F71: 3
A72: 6 | B72: Остали приливи из активности финансирања | C72: 3 | D72: 0 | E72: 5 | F72: 4
A73: II. | B73: Одливи готовине из активности финансирања (од 7 до 11) | C73: 3 | D73: 0 | E73: 5 | F73: 5 | G73: =+G74+G75+G76+G77+G78 -> 170000 | H73: =+H74+H75+H76+H77+H78 -> 168000
A74: 7 | B74: Одливи по основу откупа сопствених акција | C74: 3 | D74: 0 | E74: 5 | F74: 6
A75: 8 | B75: Одливи по основу субординираних обавеза | C75: 3 | D75: 0 | E75: 5 | F75: 7
A76: 9 | B76: Одливи по основу узетих кредита | C76: 3 | D76: 0 | E76: 5 | F76: 8 | G76: 170000 | H76: 168000
A77: 10 | B77: Одливи по основу издатих хартија од вредности | C77: 3 | D77: 0 | E77: 5 | F77: 9
A78: 11 | B78: Остали одливи из активности финансирања | C78: 3 | D78: 0 | E78: 6 | F78: 0
A79: III. | B79: Нето прилив готовине из активности финансирања (I - II) | C79: 3 | D79: 0 | E79: 6 | F79: 1
A80: IV. | B80: Нето одлив готовине из активности финансирања (II - I) | C80: 3 | D80: 0 | E80: 6 | F80: 2 | G80: =+G73-G65 -> 170000 | H80: =+H73-H65 -> 168000
A81: Г. | B81: СВЕГА ПРИЛИВИ ГОТОВИНЕ (A.I. + A.V. + Б.I. + В.I.) | C81: 3 | D81: 0 | E81: 6 | F81: 3 | G81: =G17+G30+G51+G66 -> 1025463.754 | H81: =H17+H30+H51+H66 -> 1228814
A82: Д. | B82: СВЕГА ОДЛИВИ ГОТОВИНЕ (A.II. + A.VI. + A.22. + A.23. + Б.II. + В.II.) | C82: 3 | D82: 0 | E82: 6 | F82: 4 | G82: =+G22+G37+G46+G47+G57+G73 -> 1491379.501 | H82: =+H22+H37+H46+H47+H57+H73 -> 1438043
A83: Ђ. | B83: НЕТО ПОВЕЋАЊЕ ГОТОВИНЕ (Г. - Д.) | C83: 3 | D83: 0 | E83: 6 | F83: 5
A84: Е. | B84: НЕТО СМАЊЕЊЕ ГОТОВИНЕ (Д. - Г.) | C84: 3 | D84: 0 | E84: 6 | F84: 6 | G84: =+G82-G81 -> 465915.7472 | H84: =+H82-H81 -> 209229
A85: Ж. | B85: ГОТОВИНА И ГОТОВИНСКИ ЕКВИВАЛЕНТИ НА ПОЧЕТКУ ГОДИНЕ | C85: 3 | D85: 0 | E85: 6 | F85: 7 | G85: 3679221.978 | H85: 2166257
A86: З. | B86: ПОЗИТИВНЕ КУРСНЕ РАЗЛИКЕ | C86: 3 | D86: 0 | E86: 6 | F86: 8 | H86: 7475
A87: И. | B87: НЕГАТИВНЕ КУРСНЕ РАЗЛИКЕ | C87: 3 | D87: 0 | E87: 6 | F87: 9 | G87: 10261.59375
A88: Ј. | B88: ГОТОВИНА И ГОТОВИНСКИ ЕКВИВАЛЕНТИ НА КРАЈУ ПЕРИОДА (Ђ. - Е. + Ж. + З. - И.) | C88: 3 | D88: 0 | E88: 7 | F88: 0 | G88: =G83-G84+G85+G86-G87 -> 3203044.637 | H88: 1964503
B90: У Крагујевцу, дана 30.4.2018. год. | H90: Законски заступници банке
H92: Драган Лазаревић
H94: Јово Суђић
